bitfinex-derivatives/quotes_BTCF0:USTF0_20240923
["timestamp","ask_amount","ask_price","bid_price","bid_amount"]
[1727101163728,0.19,63824.0,63813.0,0.3608]
[1727101163729,0.078353,63817.0,63813.0,0.3608]
[1727101163930,0.19,63816.0,63813.0,0.3608]
[1727101164131,0.19,63816.0,63814.0,0.02255684]
[1727101164339,0.19,63816.0,63800.0,0.3608]
[1727101164340,0.19,63815.0,63812.0,0.02255684]
[1727101164629,0.078361,63810.0,63800.0,0.3608]
[1727101164830,0.078364,63808.0,63800.0,0.3608]
[1727101165129,0.3608,63813.0,63784.0,0.0037]
[1727101165130,0.19,63801.0,63796.0,0.3608]
[1727101165331,0.078373,63801.0,63800.0,0.02255684]
[1727101165627,0.268373,63801.0,63800.0,0.02255684]
[1727101166128,0.268373,63801.0,63788.0,0.3608]
[1727101166129,0.078377,63797.0,63788.0,0.3608]
[1727101166330,0.19,63793.0,63788.0,0.3608]
[1727101166521,0.078385,63791.0,63788.0,0.3608]
[1727101166723,0.5508,63797.0,63792.0,0.02255684]
[1727101166923,0.07838,63795.0,63792.0,0.02255684]
[1727101167137,0.19,63802.0,63793.0,0.02255684]
[1727101167525,1.5,63801.0,63795.0,0.02255684]
[1727101168130,0.19,63797.0,63795.0,0.02255684]
[1727101168429,0.078386,63790.0,63788.0,0.3608]
[1727101168631,0.19,63797.0,63794.0,0.02255684]
[1727101168632,0.078378,63796.0,63794.0,0.02255684]
[1727101168938,0.19,63795.0,63794.0,0.02255684]
[1727101169329,0.19,63795.0,63780.0,0.3608]
[1727101169531,0.268387,63789.0,63780.0,0.3608]
[1727101169939,0.268387,63789.0,63788.0,0.02255684]
[1727101170123,0.078396,63782.0,63780.0,0.3608]
[1727101170327,0.7216,63793.0,63780.0,0.3608]
[1727101170328,0.078389,63788.0,63781.0,0.02255684]
[1727101170524,0.078389,63787.0,63785.0,0.02255684]
[1727101170723,0.3608,63793.0,63763.0,0.0037]
[1727101170724,0.0784,63779.0,63763.0,0.0037]
[1727101170925,0.0784,63779.0,63775.0,0.02255684]
[1727101171431,0.3608,63780.0,63763.0,0.0897]
[1727101171432,0.19,63776.0,63763.0,0.0897]
[1727101171941,0.3608,63780.0,63775.0,0.02255684]
[1727101172239,0.3608,63780.0,63779.0,0.02255684]
[1727101172240,0.439198,63780.0,63779.0,0.02255684]
[1727101172535,0.3608,63780.0,63779.0,0.02255684]
[1727101173625,0.5508,63780.0,63779.0,0.02255684]
[1727101173831,0.629198,63780.0,63779.0,0.02255684]
[1727101174835,0.5508,63780.0,63779.0,0.02255684]
[1727101176838,0.629198,63780.0,63779.0,0.02255684]
[1727101177444,0.5508,63780.0,63773.0,0.3608]
[1727101177629,0.3608,63780.0,63777.0,0.02255684]
[1727101178027,0.078401,63778.0,63777.0,0.02255684]
[1727101178253,0.3608,63780.0,63777.0,0.02255684]
[1727101178835,0.078399,63779.0,63777.0,0.02255684]
[1727101179034,0.19,63778.0,63777.0,0.02255684]
[1727101179440,0.3608,63780.0,63777.0,0.02255684]
[1727101179638,0.19,63778.0,63777.0,0.02255684]
[1727101179943,0.94296,63778.0,63757.0,0.0461335]
[1727101180145,0.94296,63778.0,63754.0,0.3645]
[1727101180146,0.078431,63753.0,63746.0,0.00204]
[1727101180347,0.078445,63743.0,63737.0,0.02255684]
[1727101180545,0.19,63738.0,63737.0,0.02255684]
[1727101180933,0.3608,63740.0,63737.0,0.02255684]
[1727101181133,0.3608,63740.0,63725.0,0.3608]
[1727101181134,0.19,63738.0,63725.0,0.3608]
[1727101181447,0.3608,63729.0,63724.0,0.04904265]
[1727101181635,0.078449,63739.0,63724.0,0.04904265]
[1727101181636,0.19,63739.0,63728.0,0.3608]
[1727101181832,0.0023546,63742.0,63736.0,0.3608]
[1727101182347,0.19,63738.0,63736.0,0.3608]
[1727101182552,0.3608,63737.0,63725.0,0.3608]
[1727101182752,0.19,63726.0,63725.0,0.3608]
[1727101183841,0.19,63726.0,63710.0,0.0941]
[1727101184050,0.19,63726.0,63715.0,0.3608]
[1727101184643,0.19,63726.0,63721.0,0.3608]
[1727101184849,0.19,63731.0,63721.0,0.3608]
[1727101185045,0.19,63731.0,63727.0,0.3608]
[1727101185343,0.19,63730.0,63727.0,0.3608]
[1727101186445,0.29,63728.0,63727.0,0.3608]
[1727101187147,0.3213478,63728.0,63727.0,0.3608]
[1727101187450,0.2428858,63728.0,63727.0,0.3608]
[1727101188446,0.2428858,63728.0,63720.0,0.3608]
[1727101188648,0.29,63722.0,63720.0,0.3608]
[1727101188847,0.3608,63750.0,63721.0,0.91003]
[1727101189040,0.3608,63758.0,63721.0,0.91003]
[1727101189041,0.29,63744.0,63737.0,0.3608]
[1727101189351,0.3608,63752.0,63724.0,0.0023539]
[1727101189352,0.29,63738.0,63729.0,0.3608]
[1727101190141,0.36845,63738.0,63729.0,0.3608]
[1727101190437,0.29,63732.0,63729.0,0.3608]
[1727101191262,0.6508,63744.0,63730.0,0.47072]
[1727101191547,0.6508,63744.0,63736.0,0.3608]
[1727101191939,0.368443,63744.0,63736.0,0.3608]
[1727101192451,0.29,63744.0,63736.0,0.3608]
[1727101192643,0.078447,63741.0,63736.0,0.3608]
[1727101192850,0.368436,63749.0,63739.0,0.3608]
[1727101193146,0.368436,63749.0,63746.0,0.3608]
[1727101193445,0.368436,63749.0,63742.0,0.06151133]
[1727101193853,0.078437,63748.0,63741.0,0.06151133]
[1727101194145,0.078437,63748.0,63743.0,0.06151133]
[1727101194146,0.29,63744.0,63743.0,0.06151133]
[1727101194355,0.29,63744.0,63743.0,0.0613556]
[1727101194544,0.368442,63744.0,63743.0,0.0613556]
[1727101194854,0.29,63744.0,63743.0,0.06135501]
[1727101195150,0.29,63744.0,63739.0,0.07688917]
[1727101195553,0.078444,63743.0,63739.0,0.07688917]
[1727101195743,0.078443,63743.0,63742.0,0.06139717]
[1727101195943,0.078446,63741.0,63740.0,0.06139717]
[1727101196145,0.07845,63738.0,63737.0,0.07678295]
[1727101196349,0.07845,63738.0,63732.0,0.09225806]
[1727101196350,0.078451,63737.0,63732.0,0.09225806]
[1727101196550,0.29,63738.0,63733.0,0.11958298]
[1727101196551,0.078454,63735.0,63733.0,0.11958298]
[1727101196740,0.078454,63735.0,63734.0,0.11958298]
[1727101196946,0.078455,63734.0,63732.0,0.07679185]
[1727101197252,0.078456,63733.0,63732.0,0.07682212]
[1727101197445,0.078456,63733.0,63729.0,0.07682212]
[1727101197755,0.368459,63730.0,63729.0,0.07682212]
[1727101197949,0.368459,63730.0,63729.0,0.11959054]
[1727101198455,0.368459,63730.0,63729.0,0.19646636]
[1727101198645,0.368459,63730.0,63729.0,0.07687582]
[1727101199153,0.368459,63730.0,63729.0,0.11959361]
[1727101200052,0.29,63730.0,63729.0,0.11959361]
[1727101200439,0.29,63730.0,63729.0,0.48039361]
[1727101200738,0.3608,63752.0,63729.0,1.69546882]
[1727101200939,0.6508,63758.0,63746.0,0.43768111]
[1727101201144,0.078427,63756.0,63755.0,0.06148637]
[1727101201345,0.078429,63755.0,63747.0,0.07688111]
[1727101201657,0.6508,63756.0,63748.0,0.19643395]
[1727101201846,0.29,63756.0,63753.0,0.3608]
[1727101202046,0.3608,63770.0,63753.0,0.3608]
[1727101202047,0.1059,63777.0,63755.0,0.3608]
[1727101202348,0.1059,63777.0,63769.0,0.06143681]
[1727101202349,0.07841,63770.0,63769.0,0.06143681]
[1727101202551,0.07841,63770.0,63766.0,0.07688111]
[1727101202552,0.078414,63767.0,63766.0,0.07688111]
[1727101202747,0.078416,63765.0,63764.0,0.07688111]
[1727101202945,0.29,63770.0,63760.0,0.07688111]
[1727101202946,0.07841,63770.0,63760.0,0.07688111]
[1727101203150,0.078414,63767.0,63766.0,0.06139109]
[1727101203348,0.078415,63766.0,63765.0,0.06139109]
[1727101203650,0.29,63766.0,63764.0,0.06139225]
[1727101203852,0.29,63766.0,63755.0,0.3608]
[1727101204045,0.29,63760.0,63755.0,0.3608]
[1727101204252,0.368423,63760.0,63755.0,0.3608]
[1727101205262,0.29,63760.0,63755.0,0.3608]
[1727101205842,0.29,63765.0,63755.0,0.3608]
[1727101206144,0.3608,63770.0,63755.0,0.3608]
[1727101206145,0.368427,63756.0,63755.0,0.3608]
[1727101206344,0.368427,63756.0,63747.0,0.3608]
[1727101206345,0.29,63756.0,63747.0,0.3608]
[1727101206561,0.368437,63748.0,63747.0,0.3608]
[1727101208560,0.07844,63746.0,63745.0,0.00235311]
[1727101208855,0.29,63748.0,63745.0,0.00235311]
[1727101209660,0.078439,63747.0,63745.0,0.00235311]
[1727101210048,0.078439,63747.0,63745.0,0.36315311]
[1727101210250,0.00235382,63761.0,63746.0,0.4706]
[1727101210457,0.368401,63778.0,63757.0,0.3608]
[1727101210656,0.29,63778.0,63757.0,0.3608]
[1727101210861,0.29,63772.0,63757.0,0.3608]
[1727101211056,0.29,63763.0,63757.0,0.3608]
[1727101211951,0.25075759,63763.0,63757.0,0.3608]
[1727101212349,0.25075759,63763.0,63758.0,0.078425]
[1727101213062,0.29,63775.0,63758.0,0.6]
[1727101213358,0.078402,63777.0,63752.0,0.43976111]
[1727101213359,0.3608,63779.0,63771.0,0.3608]
[1727101213660,0.3608,63779.0,63772.0,0.078408]
[1727101213850,0.3608,63779.0,63771.0,0.3608]
[1727101214056,0.3608,63779.0,63774.0,0.078404]
[1727101214448,0.3608,63779.0,63771.0,0.3608]
[1727101215560,0.078401,63778.0,63771.0,0.3608]
[1727101215767,0.29,63774.0,63771.0,0.3608]
[1727101215947,0.29,63774.0,63760.0,0.06139225]
[1727101215948,0.078411,63770.0,63760.0,0.06139225]
[1727101216148,0.29,63765.0,63760.0,0.078422]
[1727101216357,0.29,63770.0,63759.0,0.3608]
[1727101216551,0.078407,63773.0,63765.0,0.3608]
[1727101216752,0.078409,63771.0,63765.0,0.3608]
[1727101216954,0.29,63777.0,63765.0,0.3608]
[1727101217162,0.29,63771.0,63765.0,0.3608]
[1727101217552,0.29,63771.0,63759.0,0.3608]
[1727101217764,0.078422,63760.0,63759.0,0.3608]
[1727101218264,0.078424,63759.0,63758.0,0.00235263]
[1727101218469,0.078424,63759.0,63751.0,0.3608]
[1727101218760,0.29,63752.0,63751.0,0.3608]
[1727101219666,0.368432,63752.0,63751.0,0.3608]
[1727101219864,0.368432,63752.0,63743.0,0.3608]
[1727101219865,0.078438,63748.0,63743.0,0.3608]
[1727101220051,0.29,63745.0,63743.0,0.3608]
[1727101220248,0.3608,63761.0,63743.0,0.3608]
[1727101220249,1.5,63752.0,63751.0,0.078434]
[1727101220465,0.6508,63775.0,63751.0,0.3608]
[1727101220649,0.6508,63775.0,63765.0,0.7216]
[1727101220650,0.078409,63771.0,63765.0,0.7216]
[1727101221165,0.368404,63775.0,63765.0,1.270496]
[1727101221463,0.078408,63772.0,63765.0,1.19208]
[1727101221666,0.29,63767.0,63765.0,0.3608]
[1727101221963,0.29,63772.0,63765.0,0.439216]
[1727101222273,0.1559342,63790.0,63775.0,0.078404]
[1727101222561,0.17090082,63794.0,63765.0,1.95503055]
[1727101222562,0.078378,63796.0,63789.0,0.3608]
[1727101222763,0.3608,63796.0,63789.0,0.3608]
[1727101223059,0.36838,63795.0,63789.0,0.3608]
[1727101223465,0.36838,63795.0,63778.0,0.3608]
[1727101223466,0.3608,63790.0,63778.0,0.3608]
[1727101223660,0.29,63779.0,63778.0,0.3608]
[1727101224160,0.29,63779.0,63772.0,0.3608]
[1727101224359,0.078407,63773.0,63772.0,0.3608]
[1727101224558,0.368407,63773.0,63772.0,0.3608]
[1727101224869,0.078409,63771.0,63762.0,0.3608]
[1727101225066,0.29,63773.0,63762.0,0.3608]
[1727101225364,0.29,63778.0,63768.0,0.3608]
[1727101225663,0.29,63778.0,63751.0,0.1044]
[1727101225664,0.29,63772.0,63765.0,0.3608]
[1727101227861,0.29,63766.0,63759.0,0.3608]
[1727101228663,0.078418,63764.0,63759.0,0.3608]
[1727101229364,0.29,63766.0,63759.0,0.3608]
[1727101229562,0.29,63760.0,63759.0,0.3608]
[1727101229766,0.29,63760.0,63752.0,0.3608]
[1727101230561,0.368423,63760.0,63752.0,0.3608]
[1727101230779,0.29,63753.0,63752.0,0.3608]
[1727101231063,0.368423,63760.0,63752.0,0.3608]
[1727101231656,0.29,63760.0,63752.0,0.3608]
[1727101232168,0.078425,63759.0,63752.0,0.3608]
[1727101232370,0.29,63760.0,63752.0,0.3608]
[1727101232674,0.29,63755.0,63750.0,0.00235294]
[1727101232861,0.3608,63751.0,63750.0,0.00235294]
[1727101233068,0.078445,63742.0,63733.0,0.3608]
[1727101233260,0.29,63737.0,63733.0,0.3608]
[1727101233868,0.368452,63737.0,63733.0,0.3608]
[1727101234069,0.29,63737.0,63733.0,0.3608]
[1727101234271,0.3608,63742.0,63733.0,0.439255]
[1727101234973,1.5969,63747.0,63733.0,0.3608]
[1727101234974,1.675339,63747.0,63733.0,0.3608]
[1727101235273,0.3608,63744.0,63733.0,0.3608]
[1727101235957,0.3608,63744.0,63736.0,0.078451]
[1727101236161,0.3608,63744.0,63733.0,0.3608]
[1727101236356,0.3608,63744.0,63737.0,0.07845]
[1727101236561,0.3608,63744.0,63733.0,0.439256]
[1727101236763,0.3608,63744.0,63733.0,0.3608]
[1727101236764,0.29,63743.0,63733.0,0.3608]
[1727101236972,0.078448,63740.0,63733.0,0.3608]
[1727101237174,0.29,63743.0,63733.0,0.3608]
[1727101237377,0.078452,63737.0,63733.0,0.3608]
[1727101237577,0.29,63743.0,63733.0,0.3608]
[1727101237972,0.078449,63739.0,63733.0,0.3608]
[1727101238676,0.078447,63740.0,63733.0,0.3608]
[1727101238868,0.078448,63739.0,63733.0,0.3608]
[1727101239070,0.729244,63743.0,63734.0,0.078453]
[1727101239268,1.5,63750.0,63739.0,0.3608]
[1727101239269,0.07844,63746.0,63739.0,0.3608]
[1727101239573,0.078441,63745.0,63739.0,0.3608]
[1727101240077,0.3608,63748.0,63739.0,0.439247]
[1727101240279,0.3608,63748.0,63740.0,0.078447]
[1727101240581,0.078443,63744.0,63739.0,0.3608]
[1727101240979,0.3608,63748.0,63739.0,0.3608]
[1727101241173,0.078441,63745.0,63739.0,0.3608]
[1727101241379,0.2923543,63754.0,63739.0,0.3608]
[1727101241578,0.2923543,63754.0,63741.0,0.078446]
[1727101241776,0.2923543,63754.0,63742.0,0.078444]
[1727101241976,0.2923543,63754.0,63739.0,0.3608]
[1727101242280,0.078438,63748.0,63739.0,0.3608]
[1727101242581,0.3608,63750.0,63739.0,0.3608]
[1727101243373,0.078432,63753.0,63739.0,0.3608]
[1727101243571,0.3608,63747.0,63739.0,0.3608]
[1727101243767,0.078432,63753.0,63739.0,0.3608]
[1727101243768,0.078443,63744.0,63739.0,0.3608]
[1727101243980,0.3608,63747.0,63739.0,0.3608]
[1727101244182,0.2923543,63754.0,63741.0,0.078445]
[1727101244681,0.2923543,63754.0,63739.0,0.3608]
[1727101244682,0.0023543,63754.0,63745.0,0.3608]
[1727101244877,0.0023543,63754.0,63753.0,0.078431]
[1727101245381,0.0023543,63754.0,63751.0,0.3608]
[1727101245583,0.3608,63766.0,63751.0,0.3608]
[1727101245584,0.29,63761.0,63751.0,0.3608]
[1727101245801,0.3608,63760.0,63751.0,0.3608]
[1727101245974,0.078432,63753.0,63751.0,0.3608]
[1727101246179,0.078425,63758.0,63751.0,0.3608]
[1727101246484,0.078432,63753.0,63751.0,0.3608]
[1727101246692,0.29,63753.0,63751.0,0.3608]
[1727101246983,0.078432,63752.0,63751.0,0.3608]
[1727101247179,0.156864,63752.0,63751.0,0.3608]
[1727101247375,0.078442,63745.0,63738.0,0.3608]
[1727101247687,0.078432,63752.0,63738.0,0.3608]
[1727101247688,0.078444,63743.0,63738.0,0.3608]
[1727101248476,0.3608,63751.0,63738.0,0.3608]
[1727101248681,0.3608,63750.0,63738.0,0.3608]
[1727101248884,0.078446,63742.0,63738.0,0.3608]
[1727101249081,0.3608,63746.0,63738.0,0.3608]
[1727101249082,0.078441,63746.0,63738.0,0.3608]
[1727101249285,0.29,63753.0,63738.0,0.3608]
[1727101249683,0.29,63753.0,63740.0,0.078447]
[1727101249985,0.29,63753.0,63738.0,0.3608]
[1727101249986,0.078439,63747.0,63738.0,0.3608]
[1727101250488,0.078444,63743.0,63738.0,0.3608]
[1727101250680,0.078445,63742.0,63738.0,0.3608]
[1727101250992,0.078451,63738.0,63732.0,0.36292]
[1727101251182,0.29,63739.0,63732.0,0.3608]
[1727101252188,0.078456,63733.0,63732.0,0.3608]
[1727101253490,0.29,63739.0,63732.0,0.3608]
[1727101253689,0.078456,63733.0,63732.0,0.3608]
[1727101254390,0.078451,63737.0,63732.0,0.3608]
[1727101254584,0.078453,63736.0,63732.0,0.3608]
[1727101254778,0.078453,63735.0,63732.0,0.3608]
[1727101254982,0.078456,63733.0,63732.0,0.3608]
[1727101255395,0.439255,63734.0,63725.0,0.3608]
[1727101255689,0.3608,63734.0,63725.0,0.3608]
[1727101256096,0.29,63733.0,63720.0,0.078471]
[1727101256286,0.29,63733.0,63717.0,0.3608]
[1727101256494,0.078461,63729.0,63724.0,0.3608]
[1727101256687,0.078463,63727.0,63724.0,0.3608]
[1727101256894,0.439266,63725.0,63714.0,0.00235427]
[1727101257193,0.078478,63716.0,63714.0,0.00235427]
[1727101257385,0.078478,63716.0,63711.0,0.3608]
[1727101257694,0.3608,63712.0,63706.0,0.3608]
[1727101257995,0.3608,63712.0,63693.0,0.3608]
[1727101257996,0.078492,63704.0,63693.0,0.3608]
[1727101258198,0.078489,63707.0,63695.0,0.078502]
[1727101258495,0.078495,63702.0,63693.0,0.3608]
[1727101258698,1.79,63706.0,63693.0,0.3608]
[1727101258893,0.07849,63705.0,63693.0,0.3608]
[1727101259701,0.07849,63705.0,63693.0,0.439304]
[1727101259998,0.07849,63705.0,63694.0,0.078504]
[1727101260396,0.07849,63705.0,63693.0,0.3608]
[1727101260397,1.5,63706.0,63700.0,0.29]
[1727101260591,0.078481,63713.0,63700.0,0.29]
[1727101260803,0.078476,63717.0,63700.0,0.29]
[1727101261092,0.3608,63725.0,63708.0,0.3608]
[1727101261093,1.57847,63722.0,63708.0,0.3608]
[1727101261493,0.29,63717.0,63699.0,0.3608]
[1727101261699,0.078488,63707.0,63699.0,0.3608]
[1727101262096,0.078489,63706.0,63699.0,0.3608]
[1727101262595,0.6508,63711.0,63699.0,0.3608]
[1727101262913,0.6508,63711.0,63693.0,0.3608]
[1727101262914,0.36849,63705.0,63693.0,0.3608]
[1727101263198,0.368491,63705.0,63693.0,0.3608]
[1727101263594,0.29,63699.0,63693.0,0.3608]
[1727101263792,0.729291,63705.0,63693.0,0.3608]
[1727101263993,0.078495,63701.0,63693.0,0.3608]
[1727101264301,0.078492,63704.0,63693.0,0.3608]
[1727101264496,0.078494,63702.0,63693.0,0.3608]
[1727101265403,0.3608,63705.0,63693.0,0.3608]
[1727101265404,0.078498,63699.0,63693.0,0.3608]
[1727101265701,0.0785,63698.0,63693.0,0.3608]
[1727101266400,0.3608,63705.0,63693.0,0.3608]
[1727101266599,0.078495,63701.0,63693.0,0.3608]
[1727101266803,0.3608,63705.0,63693.0,0.3608]
[1727101266804,0.078497,63700.0,63693.0,0.3608]
[1727101266994,0.078492,63704.0,63693.0,0.3608]
[1727101267201,0.078492,63704.0,63694.0,0.078503]
[1727101267505,0.078492,63704.0,63693.0,0.3608]
[1727101267506,0.3608,63705.0,63696.0,0.078501]
[1727101267804,0.3608,63711.0,63699.0,0.3608]
[1727101267995,0.00235566,63718.0,63708.0,0.3608]
[1727101268193,0.36315566,63718.0,63708.0,0.3608]
[1727101268502,0.078485,63709.0,63708.0,0.3608]
[1727101269001,0.078481,63713.0,63708.0,0.3608]
[1727101269203,0.36315566,63718.0,63708.0,0.3608]
[1727101269204,0.00235566,63718.0,63708.0,0.3608]
[1727101269391,0.00235566,63718.0,63708.0,0.439286]
[1727101269793,0.00235566,63718.0,63711.0,0.078482]
[1727101269994,0.08083066,63718.0,63708.0,0.3608]
[1727101270193,0.078476,63717.0,63708.0,0.3608]
[1727101270394,0.00235566,63718.0,63708.0,0.3608]
[1727101270607,0.00235566,63718.0,63712.0,0.29]
[1727101270800,0.00235566,63718.0,63717.0,0.29]
[1727101271006,0.07845,63738.0,63717.0,0.29]
[1727101271007,0.3608,63739.0,63717.0,1.12164]
[1727101271305,0.078454,63735.0,63726.0,0.3608]
[1727101271890,0.00785116,63739.0,63726.0,0.439264]
[1727101272106,0.078446,63741.0,63734.0,0.29]
[1727101272503,0.36856748,63745.0,63734.0,0.29]
[1727101272818,0.078449,63739.0,63732.0,0.3608]
[1727101273103,0.3608,63738.0,63726.0,0.3608]
[1727101273309,0.078461,63729.0,63726.0,0.3608]
[1727101273511,0.078463,63728.0,63726.0,0.3608]
[1727101274100,0.3608,63732.0,63726.0,0.3608]
[1727101274396,0.078453,63735.0,63726.0,0.3608]
[1727101274802,0.53885,63738.0,63726.0,0.3608]
[1727101275212,0.4604,63738.0,63726.0,0.3608]
[1727101275703,0.078452,63736.0,63726.0,0.3608]
[1727101275908,0.3608,63738.0,63732.0,0.3608]
[1727101276108,0.078445,63742.0,63732.0,0.3608]
[1727101276411,0.00235457,63752.0,63738.0,0.078449]
[1727101276595,0.078437,63748.0,63738.0,0.3608]
[1727101276797,0.078437,63748.0,63719.0,0.0042]
[1727101276798,0.7216,63739.0,63719.0,0.0042]
[1727101276998,0.3608,63722.0,63712.0,0.0952]
[1727101277206,0.078472,63721.0,63712.0,0.0952]
[1727101277509,0.3608,63722.0,63712.0,0.0952]
[1727101277810,0.078478,63716.0,63712.0,0.0952]
[1727101278000,0.078479,63715.0,63712.0,0.0952]
[1727101278195,0.07848,63713.0,63712.0,0.0952]
[1727101278394,0.07848,63713.0,63710.0,0.3608]
[1727101278604,0.29,63717.0,63710.0,0.3608]
[1727101278805,0.29,63717.0,63702.0,0.3608]
[1727101278806,0.29,63711.0,63702.0,0.3608]
[1727101279809,0.29,63711.0,63697.0,0.3608]
[1727101279810,0.3608,63705.0,63697.0,0.3608]
[1727101280110,0.29,63698.0,63697.0,0.3608]
[1727101280307,0.29,63698.0,63678.0,0.07688111]
[1727101280308,0.0785,63697.0,63676.0,0.4611]
[1727101280513,0.3608,63693.0,63676.0,0.4611]
[1727101280710,0.29,63690.0,63676.0,0.4611]
[1727101280912,0.3608,63687.0,63676.0,0.4611]
[1727101281103,0.3608,63693.0,63676.0,0.539626]
[1727101281611,0.3608,63693.0,63676.0,0.4611]
[1727101282202,0.3608,63693.0,63676.0,0.539625]
[1727101282407,0.3608,63693.0,63676.0,0.4611]
[1727101283303,0.07851,63689.0,63676.0,0.4611]
[1727101283813,0.07851,63689.0,63682.0,0.3608]
[1727101284109,0.3608,63693.0,63682.0,0.3608]
[1727101284408,0.078507,63692.0,63682.0,0.3608]
[1727101285410,0.078507,63692.0,63682.0,0.439319]
[1727101285605,0.078508,63691.0,63682.0,0.439319]
[1727101285807,0.078509,63690.0,63682.0,0.439319]
[1727101287207,0.3608,63693.0,63685.0,0.06139225]
[1727101287410,0.3608,63693.0,63684.0,0.06139225]
[1727101287614,0.3608,63693.0,63683.0,0.078517]
[1727101287615,0.07851,63689.0,63683.0,0.13990925]
[1727101288003,0.3608,63693.0,63684.0,0.06139225]
[1727101288512,0.078515,63685.0,63682.0,0.06139225]
[1727101289207,0.3608,63693.0,63683.0,0.50070825]
[1727101289404,0.07851,63690.0,63683.0,0.42219225]
[1727101289806,0.07851,63690.0,63685.0,0.078514]
[1727101290106,0.29,63705.0,63689.0,0.3608]
[1727101290302,0.078506,63693.0,63689.0,0.3608]
[1727101291002,0.078506,63693.0,63687.0,0.078511]
[1727101291003,0.078506,63693.0,63683.0,0.50070925]
[1727101291213,0.078512,63688.0,63684.0,0.078516]
[1727101291511,0.078512,63688.0,63685.0,0.078514]
[1727101291714,0.078506,63693.0,63687.0,0.078512]
[1727101291911,0.078506,63692.0,63689.0,0.07851]
[1727101292114,0.078492,63704.0,63695.0,0.078502]
[1727101292414,0.078492,63704.0,63689.0,0.3608]
[1727101292415,0.078499,63699.0,63697.0,0.3608]
[1727101292611,0.078499,63698.0,63697.0,0.3608]
[1727101293135,0.078507,63691.0,63689.0,0.36296]
[1727101293306,0.078509,63690.0,63689.0,0.3608]
[1727101293915,0.3608,63696.0,63689.0,0.3608]
[1727101294119,0.078509,63690.0,63689.0,0.3608]
[1727101296104,0.078511,63688.0,63687.0,0.101]
[1727101296801,0.078506,63692.0,63687.0,0.101]
[1727101297209,0.6508,63696.0,63687.0,0.101]
[1727101297611,0.078507,63692.0,63687.0,0.101]
[1727101297805,0.078503,63695.0,63687.0,0.101]
[1727101298007,0.078511,63688.0,63687.0,0.101]
[1727101298326,0.078511,63688.0,63674.0,0.078528]
[1727101298327,0.3608,63688.0,63674.0,0.078528]
[1727101298709,0.3608,63688.0,63673.0,0.0933]
[1727101298710,0.078523,63679.0,63673.0,0.0933]
[1727101298903,0.29,63684.0,63673.0,0.0933]
[1727101298904,0.078525,63678.0,63673.0,0.0933]
[1727101299104,0.29,63684.0,63673.0,0.0933]
[1727101299311,0.078526,63676.0,63673.0,0.0933]
[1727101300502,0.29,63679.0,63669.0,0.3608]
[1727101300722,0.29,63673.0,63669.0,0.3608]
[1727101301102,0.29,63673.0,63667.0,0.00235599]
[1727101301412,0.078531,63672.0,63667.0,0.00235599]
[1727101302111,0.078533,63671.0,63667.0,0.00235599]
[1727101302315,0.2977122,63673.0,63667.0,0.00235599]
[1727101302509,0.078536,63669.0,63667.0,0.00235599]
[1727101302716,0.29,63668.0,63664.0,0.40906183]
[1727101302921,0.29,63668.0,63663.0,0.0933]
[1727101303108,0.07854,63665.0,63663.0,0.0933]
[1727101303611,0.07854,63665.0,63660.0,0.04622183]
[1727101303811,0.07854,63665.0,63657.0,0.36288]
[1727101303812,0.29,63662.0,63659.0,0.04622183]
[1727101304020,0.29,63662.0,63657.0,0.3608]
[1727101304021,0.368544,63662.0,63657.0,0.04622183]
[1727101304214,0.368544,63662.0,63654.0,0.15949225]
[1727101304215,0.368544,63662.0,63655.0,0.04622183]
[1727101304424,0.078545,63661.0,63656.0,0.04622183]
[1727101304716,0.29,63662.0,63655.0,0.04622183]
[1727101305315,0.29,63662.0,63656.0,0.04622183]
[1727101305710,0.368549,63657.0,63656.0,0.04622183]
[1727101305910,0.368549,63657.0,63651.0,0.3608]
[1727101305911,0.29,63657.0,63652.0,0.04622183]
[1727101306218,0.078554,63653.0,63651.0,0.3608]
[1727101306707,0.078554,63653.0,63651.0,0.04628591]
[1727101306708,0.268554,63653.0,63651.0,0.04628591]
[1727101306909,0.19,63652.0,63647.0,0.04628591]
[1727101307209,0.19,63652.0,63646.0,0.04628591]
[1727101307409,0.19,63647.0,63643.0,0.06139225]
[1727101307613,0.19,63647.0,63646.0,0.04628749]
[1727101308319,0.19,63647.0,63642.0,0.04628749]
[1727101308516,0.19,63647.0,63641.0,0.04628749]
[1727101309105,0.19,63647.0,63642.0,0.04628749]
[1727101309308,0.078561,63648.0,63644.0,0.06139225]
[1727101309522,0.19,63648.0,63647.0,0.04623116]
[1727101309918,0.19,63648.0,63646.0,0.04623116]
[1727101310219,0.3608,63652.0,63645.0,0.04623116]
[1727101310424,0.19,63647.0,63645.0,0.04623116]
[1727101311421,0.19,63647.0,63644.0,0.04623116]
[1727101312217,0.00235756,63660.0,63644.0,0.04623116]
[1727101312218,0.3608,63657.0,63646.0,0.3608]
[1727101312420,0.00235756,63660.0,63655.0,0.078552]
[1727101312917,0.00235756,63660.0,63652.0,0.04623116]
[1727101312918,0.15069359,63658.0,63652.0,0.04623116]
[1727101313112,0.51149359,63658.0,63651.0,0.04623116]
[1727101313316,0.15069359,63658.0,63653.0,0.04623116]
[1727101313614,0.19,63659.0,63652.0,0.04623116]
[1727101313822,0.19,63659.0,63652.0,0.12478516]
[1727101314322,0.19,63659.0,63653.0,0.04623116]